bitfinex/quotes_ETHUSD_20220202
["timestamp","ask_amount","ask_price","bid_price","bid_amount"]
[1643830642285,0.00522655,2717.9,2717.6,0.42680557]
[1643830642887,1.86112788,2718.3,2717.6,0.42680557]
[1643830642888,0.02090308,2718.3,2717.6,0.42680557]
[1643830643085,0.02090308,2718.3,2717.3,0.18672165]
[1643830643284,0.69866562,2718.9,2717.3,0.19920988]
[1643830643784,0.14726026,2718.3,2717.3,0.19920988]
[1643830644185,0.14726026,2718.3,2717.4,0.1839]
[1643830644186,0.91663666,2718.0,2717.4,0.1839]
[1643830644584,1.21663666,2718.0,2717.4,0.1839]
[1643830644792,0.9200492,2718.2,2717.4,0.1839]
[1643830644987,0.697629,2719.0,2717.8,0.9199]
[1643830645290,0.30296338,2719.0,2717.9,2.99234157]
[1643830645548,0.00296338,2719.0,2718.0,0.442]
[1643830645747,0.00296338,2719.0,2718.2,0.17283695]
[1643830645946,0.00296338,2719.0,2718.3,0.442]
[1643830646150,0.00296338,2719.0,2718.4,0.442]
[1643830646947,0.00296338,2719.0,2718.7,0.14238672]
[1643830647148,0.00296338,2719.0,2718.6,0.442]
[1643830647149,0.00522989,2718.8,2718.6,0.442]
[1643830647752,0.00522989,2718.8,2718.3,0.1839]
[1643830647953,0.00522989,2718.8,2718.1,0.1839]
[1643830648152,0.94805553,2718.9,2717.7,3.552]
[1643830648153,0.86016769,2718.7,2717.9,0.17256532]
[1643830648350,0.86016769,2718.6,2717.9,0.17256532]
[1643830648751,0.86016769,2718.6,2718.0,0.1839]
[1643830649400,0.86016769,2718.6,2718.0,1.1037]
[1643830649600,0.00523028,2718.4,2718.0,1.5457]
[1643830649799,0.00523028,2718.4,2718.0,0.6259]
[1643830650199,0.00523028,2718.4,2718.0,0.442]
[1643830650603,0.91929542,2718.2,2718.0,0.442]
[1643830650800,0.9198513,2718.8,2718.0,0.442]
[1643830650801,0.00523039,2718.3,2718.0,0.442]
[1643830651806,0.88854624,2718.4,2718.0,0.442]
[1643830652005,0.00523045,2718.3,2717.8,0.33978786]
[1643830652204,0.92518055,2718.3,2717.8,0.33978786]
[1643830652404,0.00523045,2718.3,2717.8,0.33978786]
[1643830652936,1.2198513,2718.8,2717.8,0.33978786]
[1643830653133,0.86069104,2718.7,2717.8,0.33978786]
[1643830653331,0.00523056,2718.2,2717.8,0.33978786]
[1643830654130,1.85257654,2718.6,2717.8,0.33978786]
[1643830654430,1.85257654,2718.6,2717.8,0.15588786]
[1643830654431,0.00523062,2718.1,2717.8,0.15588786]
[1643830655032,0.00523062,2718.1,2717.7,3.7359]
[1643830655232,0.00523062,2718.1,2717.7,4.1779]
[1643830655432,0.88552773,2718.1,2717.7,4.1779]
[1643830655637,0.00523073,2718.0,2717.7,4.1779]
[1643830655834,0.00523073,2718.0,2717.7,3.994]
[1643830656702,0.697629,2719.0,2717.7,3.994]
[1643830656895,0.00523069,2718.0,2717.8,1.74993]
[1643830657092,0.00523069,2718.0,2717.9,5.792]
[1643830657892,1.09139008,2718.6,2717.9,5.792]
[1643830658094,0.00523067,2718.1,2717.9,5.792]
[1643830658893,1.8397252,2718.5,2717.9,5.792]
[1643830659294,0.00505409,2718.1,2717.9,5.792]
[1643830659896,0.00505409,2718.1,2717.9,0.442]
[1643830660196,0.9198315,2718.3,2717.9,0.442]
[1643830660433,0.00505409,2718.1,2717.9,0.442]
[1643830661433,0.14438866,2718.1,2717.9,0.442]
[1643830661633,0.14438866,2718.1,2717.7,3.552]
[1643830661634,0.14944275,2718.1,2717.7,3.552]
[1643830661835,0.14944275,2718.1,2717.8,0.442]
[1643830662235,0.85567588,2718.0,2717.8,0.442]
[1643830662835,0.86081184,2718.0,2717.8,0.442]
[1643830663034,0.00513596,2718.0,2717.8,0.442]
[1643830663235,0.85631869,2717.9,2717.8,0.442]
[1643830663836,0.85631869,2717.9,2717.5,0.1839]
[1643830664035,0.04438866,2718.1,2717.5,0.18903691]
[1643830664036,0.85631869,2717.8,2717.5,0.18903691]
[1643830664280,0.00513592,2718.0,2717.5,0.00513691]
[1643830664480,0.8565214,2717.9,2717.5,0.00513691]
[1643830664684,1.1565214,2717.9,2717.5,0.00513691]
[1643830664884,0.3,2717.9,2717.5,0.00513691]
[1643830665081,0.96438976,2718.1,2717.3,1.10388]
[1643830665282,0.86172554,2718.0,2717.5,0.00513679]
[1643830665485,0.0051358,2718.0,2717.5,0.00513679]
[1643830665680,0.0051358,2718.0,2717.6,0.442]
[1643830666283,1.8398959,2718.5,2717.6,0.442]
[1643830666481,1.8398959,2718.5,2717.6,2.19193]
[1643830666482,0.0047507,2718.0,2717.6,2.19193]
[1643830666686,0.0047507,2718.0,2717.6,3.1118]
[1643830667183,0.0047507,2718.0,2717.7,0.15062419]
[1643830667383,0.919918,2718.3,2717.7,0.15062419]
[1643830667583,0.0047507,2718.0,2717.6,5.17216258]
[1643830668227,0.0047507,2718.0,2717.7,0.1839]
[1643830668428,0.0047507,2718.0,2717.8,0.91981]
[1643830668630,0.919918,2718.3,2717.8,0.91981]
[1643830668827,0.00475074,2718.0,2717.8,0.91981]
[1643830669828,0.919918,2718.3,2717.8,0.91981]
[1643830670028,0.00478098,2718.0,2717.8,0.91981]
[1643830670229,0.94171928,2718.0,2717.8,0.91981]
[1643830671131,0.9369383,2718.0,2717.6,2.19193]
[1643830671333,0.94171928,2718.0,2717.7,0.67019679]
[1643830672179,0.9369383,2718.0,2717.7,0.67019679]
[1643830672378,0.94171924,2718.0,2717.7,0.67019679]
[1643830672880,0.86146848,2717.9,2717.6,2.19193]
[1643830674479,0.94171474,2718.0,2717.6,2.19193]
[1643830674679,0.9369383,2718.0,2717.6,2.19193]
[1643830674881,0.94171474,2718.0,2717.6,2.19193]
[1643830675280,0.94171474,2718.0,2717.6,0.442]
[1643830675534,0.9200412,2717.8,2717.6,0.442]
[1643830676835,0.9200412,2717.8,2717.5,0.0047774]
[1643830677036,0.9200412,2717.8,2717.3,0.1839]
[1643830677236,0.9200412,2717.8,2717.5,0.00477797]
[1643830677436,1.06227701,2717.8,2717.5,0.00477797]
[1643830677638,0.9200412,2717.8,2717.5,0.00477797]
[1643830678236,0.9200412,2717.8,2717.2,3.11193]
[1643830678436,0.9200412,2717.8,2717.5,0.00477793]
[1643830678637,0.9200412,2717.8,2717.5,0.17508575]
[1643830679480,0.9200412,2717.8,2717.5,0.17030782]
[1643830679677,0.9200412,2717.8,2717.5,0.00477793]
[1643830680579,0.9200412,2717.8,2717.2,2.19193]
[1643830680783,0.9200974,2717.5,2717.2,2.19193]
[1643830680981,1.8401947,2717.9,2717.2,2.19193]
[1643830681183,1.8401947,2717.9,2717.3,2.11910721]
[1643830681979,1.8401947,2717.9,2717.5,0.00477789]
[1643830682181,0.94171518,2718.0,2717.5,0.00477789]
[1643830682683,0.94171518,2718.0,2717.5,0.44677789]
[1643830683137,0.9369383,2718.0,2717.5,0.442]
[1643830683430,0.9417153,2718.0,2717.5,0.44677792]
[1643830683829,0.9417153,2718.0,2717.5,0.00477792]
[1643830684033,0.9200312,2717.8,2717.5,0.00477792]
[1643830684231,0.9200312,2717.8,2717.2,1.74993]
[1643830684429,0.9369383,2718.0,2717.2,1.74993]
[1643830684632,0.9369383,2718.0,2717.5,0.00477793]
[1643830684633,1.63638094,2718.0,2717.5,0.00477793]
[1643830684830,0.16013566,2717.7,2717.5,0.00477793]
[1643830685233,1.14678709,2717.8,2717.5,0.00477793]
[1643830685432,0.9201395,2717.4,2717.0,3.5]
[1643830685630,0.9201395,2717.4,2716.9,5.80281247]
[1643830685831,1.2201395,2717.4,2716.9,3.64319996]
[1643830686133,1.63638082,2718.0,2717.3,0.01239149]
[1643830686134,0.9417152,2718.0,2717.3,0.01239149]
[1643830686332,0.9417152,2718.0,2717.4,0.442]
[1643830686788,0.9369383,2718.0,2717.4,0.442]
[1643830686988,0.94171524,2718.0,2717.5,0.00477785]
[1643830687187,0.94171524,2718.0,2717.5,0.44677785]
[1643830687387,0.634005,2717.8,2717.5,0.44677785]
[1643830687788,0.634005,2717.8,2717.5,0.442]
[1643830688288,0.634005,2717.8,2717.5,0.44678144]
[1643830689092,0.634005,2717.8,2717.5,1.36188]
[1643830689289,0.634005,2717.8,2717.6,1.64993]
[1643830689488,0.634005,2717.8,2717.7,0.442]
[1643830690292,0.934005,2717.8,2717.7,0.442]
[1643830690532,0.634005,2717.8,2717.7,0.442]
[1643830691933,0.634005,2717.8,2717.5,0.00477741]
[1643830692133,0.17655879,2717.7,2717.5,0.00477741]
[1643830692333,0.634005,2717.8,2717.5,0.00477741]
[1643830692735,0.9200877,2717.7,2717.1,1.83986]
[1643830693034,0.9200877,2717.7,2717.5,0.00477737]
[1643830693434,0.634005,2717.8,2717.5,0.00477737]
[1643830693833,0.634005,2717.8,2717.2,4.77175895]
[1643830694033,0.634005,2717.8,2717.5,0.00477733]
[1643830694492,0.634005,2717.8,2717.6,0.57935111]
[1643830695093,0.96032196,2717.7,2717.6,0.57935111]
[1643830698331,0.96032196,2717.7,2717.5,0.00477793]
[1643830698632,0.96032196,2717.7,2717.6,0.57935111]
[1643830699032,0.96032196,2717.7,2717.5,0.00477784]
[1643830699234,0.15568563,2717.6,2717.5,0.00477784]
[1643830699435,1.11600759,2717.6,2717.5,0.59560835]
[1643830699835,1.11600759,2717.6,2717.5,0.59083051]
[1643830700033,1.85318977,2717.6,2717.5,0.59083051]
[1643830701435,1.11600759,2717.6,2717.5,0.59083051]
[1643830702278,1.11545294,2717.6,2717.5,0.59083051]
[1643830702477,1.5540672,2717.8,2717.5,0.59083051]
[1643830702679,1.5540672,2717.8,2717.6,0.59083051]
[1643830702883,1.5540672,2717.8,2717.7,0.59083051]
[1643830703078,2.51376041,2717.8,2717.7,0.59083051]
[1643830703279,1.5540672,2717.8,2717.7,0.59083051]
[1643830703481,2.51377496,2717.8,2717.7,0.59083051]
[1643830703680,1.5540672,2717.8,2717.7,0.59083051]
[1643830703880,2.51571714,2717.8,2717.7,0.59083051]
[1643830704082,1.5540672,2717.8,2717.7,0.59083051]
[1643830704279,2.51579034,2717.8,2717.7,0.59083051]
[1643830704480,1.5540672,2717.8,2717.7,0.59083051]
[1643830704685,2.51580831,2717.8,2717.7,0.59083051]
[1643830704880,2.51582994,2717.8,2717.7,0.59083051]
[1643830705531,2.51582994,2717.8,2717.5,0.00477794]
[1643830705734,0.96176274,2717.7,2717.6,0.5784242]
[1643830705933,0.96195772,2717.7,2717.6,0.5784242]
[1643830706135,0.96195772,2717.7,2717.5,0.00477793]
[1643830706333,0.96195772,2717.7,2717.6,0.5784242]
[1643830707340,0.96195772,2717.7,2717.5,0.00477785]
[1643830707734,0.96195772,2717.7,2717.6,0.5784242]
[1643830708535,0.96195772,2717.7,2717.5,0.00477785]
[1643830708740,0.19172921,2717.6,2717.5,0.00477785]
[1643830709481,0.19172921,2717.6,2717.4,0.57800649]
[1643830709683,1.11188491,2717.6,2717.5,0.57800649]
[1643830709983,2.07404862,2717.6,2717.5,0.57800649]
[1643830710181,1.11188491,2717.6,2717.5,0.57800649]
[1643830710583,2.07401527,2717.6,2717.5,0.57800649]
[1643830710883,1.11188491,2717.6,2717.5,0.57800649]
[1643830711183,1.11188491,2717.6,2717.4,0.00477795]
[1643830711184,2.07405077,2717.6,2717.4,0.00477795]
[1643830711384,0.96216586,2717.5,2717.4,0.00477795]
[1643830711583,0.96216586,2717.5,2717.4,0.58281583]
[1643830711783,1.71748392,2717.5,2717.4,0.57803788]
[1643830712783,0.96216586,2717.5,2717.4,0.57803788]
[1643830713234,2.03215331,2717.6,2717.4,0.57803788]
[1643830713431,0.9202008,2717.4,2717.3,0.00477804]
[1643830713833,1.88219152,2717.4,2717.3,0.00477804]
[1643830714033,1.8807679,2717.4,2717.3,0.00477804]
[1643830714234,1.8807679,2717.4,2716.6,0.1839]
[1643830714434,0.15764069,2717.0,2716.7,0.57358096]
[1643830714734,1.8406933,2717.2,2716.5,5.1853]
[1643830714735,0.72833845,2717.2,2716.8,0.57358096]
[1643830714934,1.01466774,2717.1,2716.9,0.57358096]
[1643830715136,1.01466774,2717.1,2717.0,0.57358096]
[1643830715533,1.01466774,2717.1,2716.4,0.1839]
[1643830715736,1.01466774,2717.1,2716.5,0.57796626]
[1643830715737,0.9204111,2716.7,2716.5,0.57796626]
[1643830715938,0.3,2717.2,2716.5,0.57796626]
[1643830716237,1.6278916,2717.3,2716.5,0.57796626]
[1643830716238,1.2613719,2717.1,2716.5,0.57796626]
[1643830716436,0.9613719,2717.0,2716.5,0.57796626]
[1643830716887,1.8408503,2716.9,2716.7,0.00478226]
[1643830717086,4.46057296,2716.8,2716.7,0.00478226]
[1643830717284,4.76057296,2716.8,2716.7,0.00478226]
[1643830717887,5.53671112,2716.8,2716.4,0.1839]
[1643830718187,5.53671112,2716.8,2716.1,0.01913276]
[1643830718188,0.99999999,2716.5,2716.1,0.01913276]
[1643830718387,0.99999999,2716.3,2716.1,0.01913276]
[1643830718686,6.3113719,2716.2,2715.3,0.00235824]
[1643830718885,2.4913719,2716.1,2715.2,0.54108099]
[1643830719187,1.0916522,2715.3,2715.2,0.54108099]
[1643830719585,1.3916522,2715.3,2715.1,0.54108099]
[1643830719785,1.0916522,2715.3,2715.1,0.54108099]
[1643830720634,1.0916522,2715.3,2715.1,0.54588485]
[1643830720835,1.0916522,2715.3,2715.1,0.00480386]
[1643830721435,1.0916522,2715.3,2715.0,25.0]
[1643830721637,1.0916522,2715.3,2715.1,0.00480386]
[1643830721638,0.3,2715.2,2715.1,0.00480386]
[1643830721837,2.1421158,2715.2,2715.1,0.00480386]
[1643830722636,2.1421158,2715.2,2715.0,25.0]
[1643830722838,2.1421158,2715.2,2715.0,25.00480391]
[1643830723039,1.221041,2715.2,2715.0,25.00480391]
[1643830723238,0.921041,2715.2,2715.0,25.00480391]
[1643830723437,0.3,2715.2,2715.0,25.00480391]
[1643830723639,2.1419343,2715.4,2715.0,25.00480391]
[1643830723836,2.1419343,2715.4,2715.0,25.0]
[1643830724283,2.1419343,2715.4,2715.0,25.00498405]
[1643830724483,0.19134449,2715.3,2715.0,25.00498405]
[1643830725086,0.9209672,2715.2,2715.0,25.0]
[1643830725283,0.9209672,2715.2,2715.0,25.004984]
[1643830725686,0.74140858,2715.1,2715.0,0.004984]
[1643830726287,0.74140858,2715.1,2714.5,0.1841]
[1643830726486,0.74140858,2715.1,2714.9,0.00498411]
[1643830727486,0.74140858,2715.1,2714.6,0.1841]
[1643830727686,0.74140858,2715.1,2714.9,0.00476511]
[1643830728333,0.9209672,2715.2,2714.9,0.00476511]
[1643830728733,1.2209672,2715.2,2714.5,0.1841]
[1643830728935,0.9209672,2715.2,2714.9,0.00476506]
[1643830729334,0.80207975,2715.1,2714.9,0.00476506]
[1643830729934,1.2209672,2715.2,2714.5,0.1841]
[1643830730133,1.2209672,2715.2,2714.9,0.00476511]
[1643830730433,0.9209672,2715.2,2714.9,0.00476511]
[1643830730635,1.84674461,2715.4,2714.9,0.00476511]
[1643830730636,0.9209088,2715.4,2714.9,0.00476511]
[1643830731237,0.9209088,2715.4,2714.8,0.53]
[1643830731438,0.9209088,2715.4,2714.6,2.11769672]
[1643830731439,0.16173597,2715.1,2715.0,0.00478457]
[1643830731902,1.00803423,2715.1,2714.9,0.87568457]
[1643830732102,1.00803423,2715.1,2714.9,0.77568457]
[1643830732302,0.16173597,2715.1,2714.9,0.77568457]
[1643830733708,0.16173597,2715.1,2714.9,0.72568457]
[1643830733906,0.16173597,2715.1,2714.8,2.94665]
[1643830734106,0.16173597,2715.1,2714.8,2.76255]
[1643830734306,0.75060826,2715.6,2714.9,0.92084]
[1643830734606,0.30392521,2715.6,2714.9,1.10494]
[1643830735006,3.0656,2716.1,2714.9,1.1079752]
[1643830735206,4.9071242,2716.1,2715.2,0.92079]
[1643830735438,0.18900835,2716.0,2715.3,0.72677629]
[1643830735636,0.18900835,2716.0,2715.3,0.54267629]
[1643830735836,1.8415242,2716.1,2715.3,0.54267629]
[1643830736041,1.8415242,2716.1,2715.4,0.78278574]
[1643830736249,0.00523297,2715.8,2715.6,1.84102]
[1643830736437,0.00523297,2715.8,2715.7,5.88]
[1643830736836,0.00523297,2715.8,2715.7,6.88]
[1643830737040,0.17737362,2716.2,2715.6,1.84102]
[1643830737236,0.17737362,2716.2,2715.7,0.1839]
[1643830737237,0.920645,2716.2,2715.7,0.1839]
[1643830737437,0.00523286,2715.9,2715.5,0.1839]
[1643830737838,0.00523286,2715.9,2715.4,0.1841]
[1643830738239,3.70179742,2716.6,2715.4,0.1841]
[1643830738443,0.15387852,2715.9,2715.4,0.1841]
[1643830738643,0.00523297,2715.8,2715.4,0.1841]
[1643830738838,0.00523297,2715.8,2715.4,1.1048]
[1643830739589,0.15387852,2715.9,2715.4,1.1048]
[1643830739794,0.00523303,2715.7,2715.4,1.1048]
[1643830740388,0.00523303,2715.7,2715.4,0.1841]
[1643830740590,0.00523303,2715.7,2715.2,0.1841]
[1643830740792,2.11994159,2716.5,2715.3,0.40719429]
[1643830740995,3.5292626,2716.6,2715.1,0.1841]
[1643830740996,0.00523299,2715.7,2715.1,0.1841]
[1643830741199,0.00523299,2715.7,2715.3,1.83402]
[1643830741590,0.00523299,2715.7,2715.3,1.64993]
[1643830741990,0.88479983,2715.8,2715.3,1.64993]
[1643830741991,1.18479983,2715.8,2715.3,1.64993]
[1643830742191,0.9208684,2715.5,2715.1,0.1841]
[1643830743039,0.00523295,2715.7,2715.0,0.92083]
[1643830743236,1.18479983,2715.8,2715.0,0.92083]
[1643830743436,0.00523279,2715.7,2715.0,0.92083]
[1643830744436,1.80558563,2715.8,2715.0,0.92083]
[1643830744637,1.80558563,2715.8,2714.9,3.3050345]
[1643830744638,0.30523283,2715.7,2714.9,3.3050345]
[1643830744837,0.00523283,2715.7,2714.9,3.3050345]
[1643830745036,2.08168863,2715.7,2714.9,3.3050345]
[1643830745237,0.00523283,2715.7,2715.0,1.92083]
[1643830745443,0.00523283,2715.7,2715.1,0.40661431]
[1643830745638,5.3768755,2716.6,2715.2,0.01254534]
[1643830745639,2.7623626,2716.6,2715.2,0.01254534]
[1643830745838,0.00523279,2715.7,2715.2,0.01254534]
[1643830746437,0.00523279,2715.7,2715.3,0.15392883]
[1643830746693,0.80790519,2716.1,2715.3,0.15392883]
[1643830746694,0.9206909,2716.0,2715.3,0.15392883]
[1643830746895,0.9206909,2716.0,2715.4,0.92068]
[1643830747095,0.00523291,2715.7,2715.4,1.8413]
[1643830747497,0.00523291,2715.7,2715.4,0.92068]
[1643830747901,3.1605,2716.7,2715.5,0.53]
[1643830748097,3.1605,2716.7,2716.0,0.92049]
[1643830748297,1.8409961,2716.9,2716.0,0.92049]
[1643830748499,0.19909971,2716.7,2716.0,0.92049]
[1643830748700,0.69718088,2716.4,2715.8,3.3577]
[1643830749499,0.00523247,2716.2,2715.8,3.3577]
[1643830750297,2.1412071,2716.6,2715.8,3.3577]
[1643830750563,0.00523258,2716.1,2715.9,0.18375313]
[1643830750764,0.00523258,2716.1,2715.8,3.3577]
[1643830751569,2.98727843,2716.6,2715.8,3.3577]
[1643830751763,0.00523264,2716.1,2715.8,3.3577]
[1643830752165,0.92589144,2716.1,2715.8,3.3577]
[1643830752363,0.92589144,2716.1,2715.6,0.33878277]
[1643830752764,0.9206588,2716.1,2715.6,0.33878277]
[1643830752964,0.00523275,2716.0,2715.6,0.33878277]
[1643830754070,1.14607133,2716.6,2715.7,0.40795674]
[1643830754071,0.9205911,2716.4,2715.7,0.40795674]
[1643830754295,0.0052328,2715.9,2715.8,0.1839]
[1643830754688,0.0023976,2715.9,2715.7,1.3217]
[1643830754888,0.0023976,2715.9,2715.7,1.1376]
[1643830755092,0.9205853,2716.4,2715.7,1.1376]
[1643830755290,0.1619979,2716.2,2715.6,0.1841]
[1643830755490,0.81571821,2716.0,2715.4,0.1841]
[1643830755990,1.11571821,2716.0,2715.4,0.1841]
[1643830756189,0.1619979,2716.2,2715.4,0.1841]
[1643830756391,0.53,2716.6,2715.4,0.1841]
[1643830756392,0.9207526,2715.9,2715.5,0.40851266]
[1643830758940,0.9207526,2715.9,2715.6,0.40851266]
[1643830759242,0.9207526,2715.9,2715.4,0.00523385]
[1643830759440,0.9207526,2715.9,2715.5,0.40855224]
[1643830760241,0.9207526,2715.9,2715.6,0.40855224]
[1643830760444,0.9207526,2715.9,2715.7,0.40855224]
[1643830760644,0.9207526,2715.9,2715.4,0.00523385]
[1643830760842,0.9207526,2715.9,2715.5,0.39136567]
[1643830761042,0.00523253,2716.0,2715.5,0.39136567]
[1643830761245,0.9206753,2716.1,2715.5,0.39136567]
[1643830761443,0.00523253,2716.0,2715.5,0.39136567]
[1643830761887,0.00523253,2716.0,2715.7,0.1648563]
[1643830762087,0.00523253,2716.0,2715.8,0.39136567]
[1643830762283,0.00523253,2716.0,2715.9,2.64136567]
[1643830762484,1.2205798,2716.4,2715.9,2.64136567]
[1643830762685,1.2205798,2716.4,2716.0,0.39136567]
[1643830763085,0.9205798,2716.4,2715.7,0.39136567]
[1643830763288,5.05625545,2716.3,2715.8,0.39136567]
[1643830763485,0.76000936,2716.6,2715.3,0.1839]
[1643830763486,1.13297262,2716.2,2715.3,0.1839]
[1643830763685,2.35780885,2716.5,2715.4,0.4082259]
[1643830763686,1.13297262,2716.4,2715.4,0.4082259]
[1643830763985,0.00523252,2716.2,2715.5,0.4082259]
[1643830764186,1.13297262,2716.1,2715.5,0.4082259]
[1643830764588,0.00523252,2716.2,2715.5,0.4082259]
[1643830764784,0.76000936,2716.6,2715.5,0.4082259]
[1643830764785,0.17816206,2716.5,2715.5,0.4082259]
[1643830764985,1.13319336,2716.4,2715.6,0.4082259]
[1643830765184,0.00523261,2716.0,2715.7,0.4082259]
[1643830765439,0.00523261,2716.0,2715.4,0.00523393]
[1643830765639,0.00523261,2716.0,2715.5,0.40809438]
[1643830766039,2.45514047,2716.5,2715.5,0.40809438]
[1643830766243,0.00513445,2716.0,2715.6,0.40809438]
[1643830766441,2.07214665,2715.9,2715.7,0.40809438]
[1643830766641,2.07214665,2715.9,2715.4,0.00513575]
[1643830766642,0.9207543,2715.9,2715.4,0.00513575]
[1643830766842,0.9207543,2715.9,2715.5,0.39072895]
[1643830767442,0.77069802,2715.9,2715.6,0.39072895]
[1643830767742,0.77069802,2715.9,2715.4,0.00513571]
[1643830767743,0.96066986,2715.9,2715.4,0.00513571]
[1643830767943,1.1518366,2715.8,2715.5,0.39095993]
[1643830768544,2.762453,2715.4,2715.1,4.4978]
[1643830768743,2.762453,2715.4,2715.0,2.99283]
[1643830768744,2.762453,2715.4,2715.2,0.39113658]
[1643830768945,2.762453,2715.4,2715.0,1.64993]
[1643830768946,2.762453,2715.4,2715.3,0.39113658]
[1643830769213,2.762453,2715.4,2715.1,0.39113658]
[1643830769403,2.762453,2715.4,2715.2,0.39113658]
[1643830769599,2.762453,2715.4,2715.0,0.39113658]
[1643830769802,2.762453,2715.4,2715.1,0.0047546]
[1643830769999,0.9207234,2715.7,2715.2,0.39113658]
[1643830770202,0.9207234,2715.7,2715.1,0.0047546]
[1643830770203,0.9207234,2715.7,2715.3,0.39113658]
[1643830770400,0.9207234,2715.7,2715.4,0.39113658]
[1643830770601,3.58538691,2716.0,2715.5,0.39113658]
[1643830770901,1.15766252,2715.9,2715.6,0.39113658]
[1643830771102,1.15766252,2715.9,2715.3,0.92069]
[1643830771103,1.15766252,2715.9,2715.4,0.00475443]
[1643830771302,1.15766252,2715.9,2715.5,0.39113609]
[1643830771303,3.15766252,2715.9,2715.5,0.39113609]
[1643830771508,1.68766252,2715.8,2715.4,0.00475443]
[1643830771703,1.15766252,2715.7,2715.4,0.00475443]
[1643830772103,1.8419682,2715.4,2715.1,0.1841]
[1643830772306,1.45766252,2715.3,2715.2,0.34356126]
[1643830772505,1.00854677,2715.3,2715.2,0.34356126]
[1643830772935,1.8419682,2715.4,2715.2,0.34356126]
[1643830773137,3.6179,2715.8,2715.2,0.34356126]
[1643830773138,1.8416421,2715.7,2715.2,0.34356126]
[1643830773535,3.6434,2716.2,2714.5,1.05468773]
[1643830773536,1.2367742,2715.6,2715.3,0.34356126]
[1643830773736,0.0047845,2716.0,2715.4,0.34356126]
[1643830773936,1.2367778,2715.9,2715.5,0.34356126]
[1643830774136,0.9207875,2715.5,2715.1,0.00478613]
[1643830774338,0.9207875,2715.5,2715.2,0.30926569]
[1643830774537,0.9207875,2715.5,2714.9,0.1841]
[1643830774538,0.9207875,2715.5,2715.4,0.00478607]
[1643830774840,0.17806459,2715.5,2715.4,0.31405176]
[1643830775238,1.42898099,2715.5,2715.4,0.31405176]
[1643830775639,1.42898099,2715.5,2715.4,0.30926569]
[1643830776037,0.17806459,2715.5,2715.4,0.30926569]
[1643830778107,1.4201897,2715.5,2715.4,0.30926569]
[1643830779292,1.4201897,2715.5,2714.8,0.1841]
[1643830779493,1.24212511,2715.4,2715.3,0.00478132]
[1643830780095,0.17806459,2715.5,2715.3,0.30936118]
[1643830780294,0.17806459,2715.5,2715.4,0.30457986]
[1643830780541,0.17806459,2715.5,2715.0,0.30457986]
[1643830780542,1.42016567,2715.5,2715.0,0.30457986]
[1643830780737,0.17806459,2715.5,2715.2,0.0047821]
[1643830780941,0.00478065,2716.0,2715.3,0.30457986]
[1643830780942,0.9207633,2715.9,2715.3,0.30457986]
[1643830781141,1.25579758,2715.8,2715.4,0.30457986]
[1643830781368,1.25579758,2715.8,2715.5,0.30457986]
[1643830781540,1.55579758,2715.8,2715.3,0.1841]
[1643830781839,1.25579758,2715.7,2715.4,0.29571606]
[1643830782041,0.82157858,2715.5,2715.4,0.00478206]
[1643830782241,2.07737616,2715.5,2715.4,0.29292045]
[1643830782645,2.27250698,2715.5,2715.4,0.29292045]
[1643830782842,2.27250698,2715.5,2715.0,0.1841]
[1643830783043,2.27250698,2715.5,2715.3,0.004782]
[1643830783044,1.0167094,2715.5,2715.3,0.004782]
[1643830783243,1.0167094,2715.5,2715.4,0.28807989]
[1643830783645,2.27693826,2715.5,2715.4,0.28807989]
[1643830784287,2.27693826,2715.5,2714.7,1.84162]
[1643830784288,2.57693826,2715.5,2715.3,0.0047819]
[1643830784489,1.26022886,2715.4,2715.3,0.0047819]
[1643830785194,1.26022886,2715.4,2715.0,0.28727765]
[1643830785195,3.10212946,2715.4,2715.0,0.28727765]
[1643830785391,1.26022886,2715.3,2715.2,0.004782]
[1643830785593,1.26022886,2715.3,2715.2,0.23900183]
[1643830786092,1.8419006,2715.4,2715.2,0.23900183]
[1643830786292,1.8419006,2715.4,2715.3,0.23421983]
[1643830786493,3.10211987,2715.4,2715.3,0.23421983]
[1643830786692,3.25892432,2715.4,2715.3,0.23421983]
[1643830787093,4.17982142,2715.4,2715.3,0.23421983]
[1643830787393,4.17982142,2715.4,2715.1,0.00478209]
[1643830787594,2.91960215,2715.4,2715.2,0.23421983]
[1643830787795,2.91960215,2715.4,2715.3,0.23421983]
[1643830788048,2.91960215,2715.4,2715.2,0.00478202]
[1643830788049,0.3,2715.3,2715.2,0.00478202]
[1643830788245,3.64733614,2715.3,2715.2,0.00478202]
[1643830788643,1.56033405,2715.3,2715.2,0.00478202]
[1643830788844,0.9210523,2714.7,2714.6,0.1841]
[1643830789042,0.9210523,2714.7,2714.1,11.48945444]
[1643830789043,1.08047129,2714.7,2714.2,0.47076352]
[1643830789243,1.82849455,2714.7,2714.3,0.28666352]
[1643830789443,1.82849455,2714.7,2714.4,0.1841]
[1643830789647,1.82849455,2714.7,2714.5,0.28666352]
[1643830790047,0.9210789,2714.5,2714.2,0.1841]
[1643830790246,0.9210789,2714.5,2714.3,0.28662905]
[1643830791446,0.9210789,2714.5,2714.3,0.29142991]
[1643830791696,0.9210789,2714.5,2714.4,0.28662905]
[1643830792096,0.9210789,2714.5,2714.3,0.00480086]
[1643830792299,1.8421838,2714.6,2714.1,3.5077]
[1643830792498,0.9211446,2714.3,2714.2,0.19833679]
[1643830793399,2.9211446,2714.3,2714.2,0.19833679]
[1643830793599,1.2211446,2714.3,2713.8,0.1842]
[1643830793899,1.2211446,2714.3,2714.1,0.00260052]
[1643830794100,1.2211446,2714.3,2713.7,0.01040363]
[1643830794297,1.2211446,2714.3,2713.8,0.17553634]
[1643830794498,1.2211446,2714.3,2713.7,0.01040363]
[1643830794499,2.49565,2714.2,2713.7,0.01040363]
[1643830794698,2.49565,2714.2,2713.1,2.1842]
[1643830794699,0.9214069,2714.0,2713.1,2.1842]
[1643830794897,0.92143,2714.0,2713.2,0.1754503]
[1643830795099,0.00395983,2714.1,2713.3,0.01278464]
[1643830795435,0.95224205,2714.2,2713.4,0.1754503]
[1643830795840,0.9212732,2714.1,2713.4,0.1754503]
[1643830796035,0.7976821,2713.7,2713.4,0.1754503]
[1643830797236,0.9213732,2713.9,2713.4,0.1754503]
[1643830797637,0.92180139,2713.9,2713.4,0.1754503]
[1643830797837,0.92180139,2713.9,2713.4,1.0967703]
[1643830798137,0.90757235,2713.6,2713.5,0.1754503]
[1643830798342,0.90757235,2713.6,2713.3,0.01278464]
[1643830798539,0.72837477,2713.9,2713.4,0.1741507]
[1643830798742,0.3,2713.8,2713.5,0.00524198]
[1643830799211,0.87212376,2713.9,2713.5,0.00524198]
[1643830799601,0.69597207,2713.8,2713.1,1.10559]